[Event "European Women Rapid-ch 2023"]
[Site "Monaco"]
[Date "2024.01.14"]
[Round "7.22"]
[White "Navrotescu, Andreea"]
[Black "Rudzinska, Michalina"]
[Result "1-0"]
[ECO "E21"]
[WhiteElo "2222"]
[BlackElo "2241"]
[Annotator "RC"]
[PlyCount "129"]
[EventDate "2023.12.19"]
[EventType "swiss"]
[EventCountry "MNC"]
[SourceTitle "playchess.com"]
[Source "ChessBase"]
[SourceQuality "1"]
[TimeControl "900+10"]

1. d4 {[%emt 0:00:01]} Nf6 {[%emt 0:00:01]} 2. c4 {[%emt 0:00:01]} e6 {[%emt 0:00:05]} 3. Nc3 {[%emt 0:00:02]} Bb4 {[%emt 0:00:02]} 4. e3 {[%emt 0:00:01]} O-O {[%emt 0:00:03]} 5. Bd2 {[%emt 0:00:02]} b6 {[%emt 0:00:03]} 6. Nf3 {[%emt 0:00:20]} Bb7 {[%emt 0:00:03]} 7. Bd3 {[%emt 0:00:03]} d6 {[%emt 0:00:21]} 8. O-O {[%emt 0:00:21]} Bxc3 {[%emt 0:00:42]} 9. Bxc3 {[%emt 0:00:03]} Ne4 {[%emt 0:00:02]} 10. Bxe4 {[%emt 0:00:35]} Bxe4 {[%emt 0:00:02]} 11. d5 {[%emt 0:00:02]} e5 {[%emt 0:01:47]} 12. Ne1 {[%emt 0:00:39]} Nd7 {[%emt 0:00:13]} 13. f3 {[%emt 0:00:22]} Bg6 {[%emt 0:00:05]} 14. f4 {[%emt 0:00:23]} f5 {[%emt 0:02:19]} 15. Nf3 {[%emt 0:01:05]} Bh5 {[%emt 0:01:36]} 16. fxe5 {[%emt 0:00:20]} dxe5 {[%emt 0:01:19]} 17. Qc2 {[%emt 0:00:10]} Bxf3 {[%emt 0:00:08]} 18. Rxf3 {[%emt 0:00:06]} g6 {[%emt 0:00:08]} 19. Raf1 {[%emt 0:00:28]} Qe7 {[%emt 0:00:03]} 20. Rg3 {[%emt 0:00:17]} Kh8 {[%emt 0:00:31]} 21. b4 {[%emt 0:03:41]} Rae8 {[%emt 0:00:16]} 22. e4 {[%emt 0:02:54]} f4 {[%emt 0:00:20]} 23. Rd3 {[%emt 0:00:48]} Rf6 {[%emt 0:01:42]} 24. Qa4 {[%emt 0:00:29]} a5 {[%emt 0:00:37]} 25. a3 {[%emt 0:00:01]} axb4 {[%emt 0:00:14]} 26. axb4 {[%emt 0:00:02]} g5 {[%emt 0:00:23]} 27. Qa7 {[%emt 0:00:30]} Qd6 {[%emt 0:00:49]} 28. Rc1 {[%emt 0:03:55]} g4 {[%emt 0:00:40]} 29. Be1 {[%emt 0:01:53]} c5 {[%emt 0:03:22]} 30. b5 {[%emt 0:00:01]} Rh6 {[%emt 0:00:19]} 31. Qb7 {[%emt 0:00:13]} Nf6 {[%emt 0:00:59]} 32. Qc6 {[%emt 0:00:10]} Rd8 {[%emt 0:00:53]} 33. Ra1 {[%emt 0:00:16]} Nxe4 {[%emt 0:00:05]} 34. Ra8 {[%emt 0:00:13]} Rxa8 {[%emt 0:00:12]} 35. Qxa8+ {[%emt 0:00:01]} Kg7 {[%emt 0:00:01]} 36. Ra3 {[%emt 0:00:01]} Rf6 {[%emt 0:00:31]} 37. Qc8 {[%emt 0:00:28]} Rg6 {[%emt 0:00:13]} 38. Ra7+ {[%emt 0:00:06]} Kh6 {[%emt 0:00:02]} 39. Qh8 {[%emt 0:00:18]} Nf6 {[%emt 0:00:12]} 40. Bh4 {[%emt 0:00:05]} f3 {[%emt 0:00:12]} 41. Bf2 {[%emt 0:00:15]} Kg5 {[%emt 0:00:10]} 42. Be3+ {[%emt 0:00:01]} Kf5 {[%emt 0:00:02]} 43. Qc8+ {[%emt 0:00:04]} Ke4 {[%emt 0:00:02]} 44. Bf2 {[%emt 0:00:08]} fxg2 {[%emt 0:00:22]} 45. Ra3 {[%emt 0:00:01]} Nd7 {[%emt 0:00:15]} 46. Re3+ {[%emt 0:00:05]} Kf4 {[%emt 0:00:05]} 47. Re2 {[%emt 0:00:10]} Qe7 {[%emt 0:00:13]} 48. Kxg2 {[%emt 0:00:14]} Kg5 {[%emt 0:00:07]} 49. Be3+ {[%emt 0:00:14]} Kf5 {[%emt 0:00:16]} 50. Ra2 {[%emt 0:00:22]} Rg7 {[%emt 0:00:10]} 51. Ra7 {[%emt 0:00:13]} Ke4 {[%emt 0:00:02]} 52. Bf2 {[%emt 0:00:02]} Qf7 {[%emt 0:00:03]} 53. Kg1 {[%emt 0:00:16]} Qf5 {[%emt 0:00:04]} 54. Ra3 {[%emt 0:00:15]} Qf4 {[%emt 0:00:29]} 55. Re3+ {[%emt 0:00:10]} Kf5 {[%emt 0:00:15]} 56. Qc6 {[%emt 0:00:14]} Qxc4 {[%emt 0:00:08]} 57. Qe6+ {[%emt 0:00:02]} Kg5 {[%emt 0:00:01]} 58. h4+ {[%emt 0:00:15]} Kh5 {[%emt 0:00:16]} 59. Qf5+ {[%emt 0:00:16]} Kh6 {[%emt 0:00:01]} 60. Re4 {[%emt 0:00:03]} Qc1+ {[%emt 0:00:08]} 61. Re1 {[%emt 0:00:02]} Qxe1+ {[%emt 0:00:24]} 62. Bxe1 {[%emt 0:00:01]} Rg6 {[%emt 0:00:09]} 63. Bd2+ {[%emt 0:00:05]} Kg7 {[%emt 0:00:02]} 64. Qxd7+ {[%emt 0:00:01]} Kg8 {[%emt 0:00:01]} 65. Qe8+ {[%emt 0:00:03]} 1-0

[Event "European Women Rapid-ch 2023"]
[Site "Monaco"]
[Date "2024.01.14"]
[Round "7.23"]
[White "Dornbusch, Tatiana"]
[Black "Guillo Longares, Cecilia"]
[Result "0-1"]
[ECO "A70"]
[WhiteElo "2218"]
[BlackElo "2096"]
[Annotator "TA"]
[PlyCount "77"]
[EventDate "2023.12.19"]
[EventType "swiss"]
[EventCountry "MNC"]
[SourceTitle "playchess.com"]
[Source "ChessBase"]
[SourceQuality "1"]
[TimeControl "900+10"]

{[%evp 16,77,43,39,34,7,77,70,75,80,145,71,83,46,53,16,16,0,0,-34,56,30,32,50,40,29,19,12,21,6,31,20,58,8,73,0,100,60,154,160,274,51,75,90,194,149,144,0,0,-37,-45,-54,-55,-388,-366,-1672,-1668,-1586,-1533,-29986,-29987,-29987,-29988,-29988]} 1. d4 {[%emt 0:00:03]} Nf6 {[%emt 0:00:01]} 2. Nf3 {[%emt 0:00:05]} c5 {[%emt 0:00:02]} 3. d5 {[%emt 0:00:02]} e6 {[%emt 0:00:03]} 4. c4 {[%emt 0:00:10]} exd5 {[%emt 0:00:12]} 5. cxd5 {[%emt 0:00:02]} d6 {[%emt 0:00:03]} 6. Nc3 {[%emt 0:00:25]} g6 {[%emt 0:00:01]} 7. e4 {[%emt 0:00:33]} Bg7 {[%emt 0:00:02]} 8. Bb5+ {[%emt 0:00:25]} Bd7 {[%emt 0:00:09]} 9. a4 {[%emt 0:00:08]} O-O {[%emt 0:00:08]} 10. Nd2 {[%emt 0:01:44]} a6 {[%emt 0:00:24]} (10... Bxb5 $11 11. axb5 Re8) 11. Be2 $16 {[%emt 0:00:08]} Qe7 {[%emt 0:00:16] Weiß steht etwas besser.} 12. O-O {[%emt 0:00:13]} Be8 {[%emt 0:00:59]} (12... Bc8 $142) 13. Qc2 {[%emt 0:00:43]} ({Günstiger ist} 13. Qb3) 13... Nbd7 {[%emt 0:00:08]} 14. Nc4 {[%emt 0:00:10]} Ne5 {[%emt 0:00:37]} 15. Nb6 {[%emt 0:00:22]} Rb8 {[%emt 0:00:09]} 16. a5 {[%emt 0:00:15]} Nfd7 {[%emt 0:01:03]} 17. Nba4 {[%emt 0:03:10] Und jetzt f4 wäre schön.} Nf6 {[%emt 0:00:16]} (17... f5 $15) 18. f4 {[%emt 0:00:25]} Bxa4 {[%emt 0:00:13]} 19. Rxa4 {[%emt 0:01:04]} Ned7 {[%emt 0:00:13][%cal Be5d7,Bd7f6,Bf6h5][%mdl 32]} 20. Re1 {[%emt 0:02:50]} Ne8 {[%emt 0:00:38]} 21. Be3 {[%emt 0:00:14]} Nc7 {[%emt 0:01:26]} 22. Bd3 $36 {[%emt 0:00:54][%mdl 2048] Schwarz steht unter Druck.} Nf6 {[%emt 0:02:05]} 23. h3 {[%emt 0:00:29]} Nh5 {[%emt 0:00:25]} 24. b4 {[%emt 0:00:15]} (24. Qf2 $14) 24... Qh4 {[%emt 0:00:35] [#]} (24... c4 $1 $11 25. Bxc4 Rbc8) 25. Rf1 {[%emt 0:00:23]} (25. Bf2 $1 $16 {[%cal Rf2h4]} Bd4 26. bxc5 Bxc5 27. Rf1 Nxf4 28. Bxc5 dxc5 29. e5 Nxh3+ (29... Ncxd5 $2 30. Nxd5 Nxh3+ 31. gxh3 $18) 30. gxh3 Qg3+ 31. Qg2 Qxe5 (31... Qxd3 $2 32. Rf3 $18) 32. d6) 25... Qg3 {[%emt 0:00:32]} (25... Bd4 $11 {hält das Gleichgewicht.} 26. Bxd4 cxd4) 26. Nd1 {[%emt 0:01:17]} Nb5 {[%emt 0:02:06]} (26... c4 $1 $14 27. Bxc4 Nb5) 27. bxc5 {[%emt 0:00:30][%cal Oe4e5] Droht stark e5!} dxc5 {[%emt 0:00:01]} (27... Nc3 $16 {ist wohl besser.} 28. Bf2 (28. Nxc3 Qxe3+ 29. Kh2 Qg3+ 30. Kh1 Nxf4 $17) 28... Qxf4) 28. Qxc5 $2 {[%emt 0:00:37]} (28. e5 $1 $18 {[%cal Oe3f2] Bf2! ist eine echte Drohung.} Qh4 29. d6 (29. Qxc5 Bxe5 30. Bxb5 axb5 $18) (29. Bxc5 Rbc8 $18)) 28... Rfc8 {[%emt 0:00:36]} 29. Qb6 {[%emt 0:00:06][%cal Oe4e5] Droht e5! und aus.} Nc3 {[%emt 0:00:33]} (29... g5 $16) 30. Nxc3 $18 {[%emt 0:01:22]} Rxc3 {[%emt 0:00:02] [#]} 31. Rf3 {[%emt 0:00:49]} (31. e5 $1 $16 {Und Rf3 würde nun gewinnen.} g5 (31... Rxd3 $2 {verliert.} 32. Bf2 $18) 32. Qd4 Nxf4 33. Bxf4 (33. Qxc3 $2 Qxg2#) 33... Qxd3 34. Bxg5 Qxd4+ 35. Rxd4 Bxe5 36. Re4) 31... Qe1+ $11 {[%emt 0:00:08]} 32. Bf1 {[%emt 0:00:07] Schwarz muss nun e5 beachten.} Ng3 {[%emt 0:00:42]} 33. Rxg3 {[%emt 0:00:23]} Qxg3 {[%emt 0:00:06]} 34. Bf2 {[%emt 0:00:15][%mdl 8192] Danach ist Weiß chancenlos.} (34. Bd2 $1 $15) 34... Qxf4 $19 {[%emt 0:00:19] ( -> ...Be5)} 35. g3 $2 {[%emt 0:00:10]} (35. Be1 Rc2 36. Qb3) 35... Rxg3+ {[%emt 0:01:43]} 36. Bxg3 {[%emt 0:00:01]} Qxg3+ {[%emt 0:00:02]} 37. Bg2 {[%emt 0:00:06]} Rc8 {[%emt 0:00:03][%cal Rc8c1]} 38. Qb1 {[%emt 0:00:22]} Qe3+ {[%emt 0:00:09]} 39. Kf1 {[%emt 0:00:23] Gewichteter Fehlerwert: Weiß=0.79/Schwarz=0.41.  Verlustzug:     	Weiß=1     	---        Gewinn verpasst:   	Weiß=1     	---        Fehler:       	Weiß=5     	Schwarz=8     Ungenau:       	Weiß=7     	Schwarz=1     OK:         	Weiß=3     	Schwarz=4     Bester:       	Weiß=3     	Schwarz=7} 0-1

[Event "European Women Rapid-ch 2023"]
[Site "Monaco"]
[Date "2024.01.14"]
[Round "7.24"]
[White "Cornileau, Juliette"]
[Black "Haussernot, Cecile"]
[Result "0-1"]
[ECO "D45"]
[WhiteElo "2007"]
[BlackElo "2136"]
[Annotator "TA"]
[PlyCount "87"]
[EventDate "2023.12.19"]
[EventType "swiss"]
[EventCountry "MNC"]
[SourceTitle "playchess.com"]
[Source "ChessBase"]
[SourceQuality "1"]
[TimeControl "900+10"]

1. d4 {[%emt 0:00:01]} d5 {[%emt 0:00:03]} 2. c4 {[%emt 0:00:01]} c6 {[%emt 0:00:06]} 3. Nc3 {[%emt 0:00:02]} Nf6 {[%emt 0:00:02]} 4. Nf3 {[%emt 0:00:02]} e6 {[%emt 0:00:06]} 5. e3 {[%emt 0:00:01]} Nbd7 {[%emt 0:00:02]} 6. Qc2 {[%emt 0:00:02]} Bd6 {[%emt 0:00:02]} 7. g4 {[%emt 0:00:03]} h6 {[%emt 0:00:34]} 8. Rg1 {[%emt 0:00:02]} e5 {[%emt 0:00:37]} 9. cxd5 {[%emt 0:01:35]} cxd5 {[%emt 0:00:07]} 10. g5 {[%emt 0:00:41]} hxg5 {[%emt 0:00:02]} 11. Nxg5 {[%emt 0:00:02]} e4 {[%emt 0:00:32]} 12. Nb5 {[%emt 0:05:51]} Bb8 {[%emt 0:00:30]} (12... Bxh2 $6 13. Rh1 Kf8 14. Nc7 $11) 13. Bd2 {[%emt 0:00:01]} Nb6 {[%emt 0:01:07]} (13... Bxh2 14. Rh1 Kf8 15. Nc7 $18) (13... Rxh2 $6 14. Rc1 Nb6 15. Nc7+ Bxc7 16. Qxc7 Qxc7 17. Rxc7 $16) 14. Rc1 {[%emt 0:01:36]} Bd7 {[%emt 0:01:28]} (14... Bxh2 $6 15. Bb4 Bb8 (15... Bxg1 16. Nc7+) 16. Nc7+ Bxc7 17. Qxc7 Qxc7 18. Rxc7 $16) 15. Qc5 {[%emt 0:01:41]} Bc6 {[%emt 0:01:53]} (15... Bxh2 16. Rh1 Bxb5 17. Rxh2 Rxh2 18. Bxb5+ Nfd7 19. Bb4 $18) (15... Rxh2 $2 16. Bb4 Rh8 17. Nd6+ Bxd6 18. Qxd6 $18) 16. Bb4 $1 {[%emt 0:00:22]} Na4 {[%emt 0:01:17]} (16... Bxh2 $2 17. Rh1 Ng4 (17... Nc8 $2 18. Rxh2 Rg8 19. Bh3 $18) 18. Be2 $18 (18. Nd6+ Kd7 $18)) (16... a6 $5 17. Nd6+ $8 Qxd6 18. Qxd6 Bxd6 19. Bxd6 Rc8 $11) 17. Qc2 {[%emt 0:00:20]} Nb6 $1 {[%emt 0:00:05]} 18. Qc5 {[%emt 0:00:06]} Nfd7 {[%emt 0:02:47]} (18... Bxh2 $2 19. Rh1 Ng4 (19... Nc8 $2 20. Rxh2 Rg8 21. Bh3 $18) 20. Be2 $18 (20. Nd6+ Kd7 $18)) (18... a6 $11 19. Nd6+ Bxd6 20. Qxd6 Qxd6 21. Bxd6 Nc8) 19. Nd6+ $16 {[%emt 0:01:00]} Bxd6 {[%emt 0:00:09]} 20. Qxd6 {[%emt 0:00:02]} Qf6 {[%emt 0:00:08]} 21. Qg3 {[%emt 0:00:29]} Nc8 {[%emt 0:01:20]} 22. Bh3 {[%emt 0:01:33]} (22. f3 $16) 22... Rh6 {[%emt 0:01:19]} ({Black should try} 22... a5 $14 23. Ba3 Ne7) 23. Ba3 {[%emt 0:02:47]} (23. f3 $142 {fxe4 would now be deadly.} exf3 24. Nxf3) 23... Ne7 $16 {[%emt 0:01:00]} 24. f3 {[%emt 0:00:32]} exf3 {[%emt 0:00:29]} 25. Nxf3 {[%emt 0:00:08]} Rg6 {[%emt 0:00:50]} 26. Qf4 {[%emt 0:00:13]} ({Better is} 26. Ng5 $16) 26... Qxf4 {[%emt 0:01:16]} 27. exf4 {[%emt 0:00:01]} Rxg1+ {[%emt 0:00:20]} 28. Nxg1 {[%emt 0:00:01]} Ng6 {[%emt 0:00:09]} 29. Ne2 {[%emt 0:00:17]} O-O-O {[%emt 0:00:08]} 30. f5 {[%emt 0:00:18]} Nh4 {[%emt 0:00:38]} 31. Be7 {[%emt 0:00:03]} Rh8 {[%emt 0:00:04]} 32. Kf2 {[%emt 0:00:20]} Nf3 {[%emt 0:00:30]} (32... Nxf5 $2 33. Bxf5 Rxh2+ 34. Ke3 $18) 33. Bg2 {[%emt 0:00:13]} Nxh2 {[%emt 0:00:23]} 34. b4 {[%emt 0:00:13]} a6 {[%emt 0:00:11]} 35. Kg3 {[%emt 0:00:08]} (35. Bxd5 Ng4+ 36. Kf3 Nh2+ 37. Kf4 Re8 38. Bxc6 (38. Bxf7 Rxe7 39. Be6 Kd8 $17) 38... bxc6 39. Rxc6+ (39. f6 gxf6 40. Rxc6+ Kb7 $11) 39... Kb7 $11) 35... Re8 $1 {[%emt 0:00:03]} 36. Nf4 {[%emt 0:00:11]} (36. f6 $5 gxf6 (36... Nxf6 $2 {too greedy.} 37. Bxf6 gxf6 38. Nf4 $18) 37. a4 Rxe7 38. Nc3 $16) 36... Rxe7 {[%emt 0:00:04]} 37. Kxh2 {[%emt 0:00:02]} (37. b5 $11 axb5 38. Nxd5) 37... Kd8 {[%emt 0:00:17]} 38. Nxd5 $2 {[%emt 0:00:11]} (38. Bxd5 $15 Bxd5 39. Nxd5) 38... Re2 $19 {[%emt 0:00:03]} 39. Nf4 {[%emt 0:00:17]} Rxa2 {[%emt 0:00:03]} 40. d5 {[%emt 0:00:04]} Bb5 {[%emt 0:00:05]} 41. Kg3 {[%emt 0:00:06]} Rb2 {[%emt 0:00:12]} 42. d6 {[%emt 0:00:13]} Rb3+ {[%emt 0:00:13]} ({Don't do} 42... Rxb4 43. Rc7) 43. Bf3 $2 {[%emt 0:00:18]} (43. Kh4) 43... Ne5 $19 {[%emt 0:00:14]} (43... Rxb4 44. Bxb7 Rb3+ 45. Kg2 $11) 44. Rf1 {[%emt 0:00:09]} 0-1

[Event "European Women Rapid-ch 2023"]
[Site "Monaco"]
[Date "2024.01.14"]
[Round "7.25"]
[White "Follana Albelda, Lucia"]
[Black "Zimina, Olga"]
[Result "0-1"]
[ECO "C24"]
[WhiteElo "1885"]
[BlackElo "2291"]
[Annotator "RC"]
[PlyCount "86"]
[EventDate "2023.12.19"]
[EventType "swiss"]
[EventCountry "MNC"]
[SourceTitle "playchess.com"]
[Source "ChessBase"]
[SourceQuality "1"]
[TimeControl "900+10"]

1. e4 {[%emt 0:00:01]} e5 {[%emt 0:00:02]} 2. Nf3 {[%emt 0:00:02]} Nc6 {[%emt 0:00:01]} 3. Bc4 {[%emt 0:00:01]} Nf6 {[%emt 0:00:02]} 4. d3 {[%emt 0:00:02]} d5 {[%emt 0:00:02]} 5. exd5 {[%emt 0:00:07]} Nxd5 {[%emt 0:00:01]} 6. a4 {[%emt 0:00:44]} Nb6 {[%emt 0:00:09]} 7. Bb3 {[%emt 0:00:07]} a5 {[%emt 0:00:16]} 8. Nc3 {[%emt 0:01:20]} Be7 {[%emt 0:02:10]} 9. O-O {[%emt 0:00:28]} Bg4 {[%emt 0:00:04]} 10. Ne4 {[%emt 0:01:28]} Qd7 {[%emt 0:00:32]} 11. h3 {[%emt 0:01:56]} Bh5 {[%emt 0:00:05]} 12. Ng3 {[%emt 0:00:09]} Bg6 {[%emt 0:00:02]} 13. Re1 {[%emt 0:00:15]} f6 {[%emt 0:00:38]} 14. Bd2 {[%emt 0:02:22]} O-O-O {[%emt 0:00:18]} 15. Bc3 {[%emt 0:00:10]} Kb8 {[%emt 0:01:45]} 16. Qd2 {[%emt 0:00:39]} Bb4 {[%emt 0:00:27]} 17. Ne4 {[%emt 0:02:58]} Rhe8 {[%emt 0:00:30]} 18. Bxb4 {[%emt 0:01:48]} Nxb4 {[%emt 0:00:03]} 19. Rad1 {[%emt 0:00:06]} Bh5 {[%emt 0:00:41]} 20. Qe2 {[%emt 0:00:43]} N6d5 {[%emt 0:00:07]} 21. Ng3 {[%emt 0:00:23]} Nf4 {[%emt 0:00:19]} 22. Qe4 {[%emt 0:00:59]} Bg6 {[%emt 0:00:32]} 23. Qc4 {[%emt 0:00:13]} Nbd5 {[%emt 0:02:23]} 24. Qb5 {[%emt 0:00:31]} c6 {[%emt 0:00:46]} 25. Qxa5 {[%emt 0:00:14]} Nxg2 {[%emt 0:00:54]} 26. Bxd5 {[%emt 0:01:19]} Nxe1 {[%emt 0:00:03]} 27. Qxe1 {[%emt 0:00:22]} cxd5 {[%emt 0:00:44]} 28. a5 {[%emt 0:00:01]} Qxh3 {[%emt 0:00:06]} 29. a6 {[%emt 0:00:07]} Qd7 {[%emt 0:00:30]} 30. Ra1 {[%emt 0:00:18]} b6 {[%emt 0:00:32]} 31. a7+ {[%emt 0:00:08]} Ka8 {[%emt 0:00:18]} 32. Qb4 {[%emt 0:00:01]} Qc7 {[%emt 0:00:20]} 33. Nd2 {[%emt 0:00:22]} Qc5 {[%emt 0:01:03]} 34. Qa4 {[%emt 0:00:09]} Rc8 {[%emt 0:00:21]} 35. Qa6 {[%emt 0:00:15]} Qc6 {[%emt 0:00:34]} 36. Nb1 {[%emt 0:00:08]} Qb7 {[%emt 0:01:16]} 37. Qa4 {[%emt 0:00:10]} b5 {[%emt 0:00:08]} 38. Qb3 {[%emt 0:00:07]} d4 {[%emt 0:00:41]} 39. Ra5 {[%emt 0:00:09]} Rc5 {[%emt 0:00:13]} 40. Na3 {[%emt 0:00:04]} Rec8 {[%emt 0:00:05]} 41. Nxb5 {[%emt 0:00:18]} Rxc2 {[%emt 0:00:08]} 42. Qa4 {[%emt 0:00:13]} Qf3 {[%emt 0:00:24]} 43. Nc3 {[%emt 0:00:10]} Qxf2+ {[%emt 0:00:04]} 0-1

[Event "European Women Rapid-ch 2023"]
[Site "Monaco"]
[Date "2024.01.14"]
[Round "7.26"]
[White "Hejazipour, Mitra"]
[Black "Bellaiche, Elise"]
[Result "1-0"]
[ECO "E07"]
[WhiteElo "2356"]
[BlackElo "2012"]
[Annotator "RC"]
[PlyCount "73"]
[EventDate "2023.12.19"]
[EventType "swiss"]
[EventCountry "MNC"]
[SourceTitle "playchess.com"]
[Source "ChessBase"]
[SourceQuality "1"]
[TimeControl "900+10"]

1. Nf3 {[%emt 0:00:02]} d5 {[%emt 0:00:02]} 2. c4 {[%emt 0:00:02]} c6 {[%emt 0:00:03]} 3. d4 {[%emt 0:00:03]} e6 {[%emt 0:00:02]} 4. g3 {[%emt 0:00:14]} Nf6 {[%emt 0:00:02]} 5. Bg2 {[%emt 0:00:03]} Be7 {[%emt 0:00:12]} 6. O-O {[%emt 0:00:07]} O-O {[%emt 0:00:01]} 7. Qc2 {[%emt 0:00:28]} Nbd7 {[%emt 0:00:15]} 8. Nbd2 {[%emt 0:00:17]} Bd6 {[%emt 0:00:57]} 9. e4 {[%emt 0:00:12]} dxe4 {[%emt 0:01:32]} 10. Nxe4 {[%emt 0:00:01]} Nxe4 {[%emt 0:00:00]} 11. Qxe4 {[%emt 0:00:03]} Nf6 {[%emt 0:00:01]} 12. Qc2 {[%emt 0:00:15]} c5 {[%emt 0:01:09]} 13. Rd1 {[%emt 0:00:16]} cxd4 {[%emt 0:00:58]} 14. Rxd4 {[%emt 0:01:13]} Qb6 {[%emt 0:02:39]} 15. Bg5 {[%emt 0:00:24]} Be7 {[%emt 0:00:54]} 16. Rad1 {[%emt 0:00:53]} h6 {[%emt 0:00:16]} 17. Be3 {[%emt 0:00:37]} Bc5 {[%emt 0:00:16]} 18. Rd6 {[%emt 0:00:14]} Qxd6 {[%emt 0:00:55]} 19. Rxd6 {[%emt 0:00:04]} Bxd6 {[%emt 0:00:01]} 20. c5 {[%emt 0:00:02]} Be7 {[%emt 0:00:19]} 21. Ne5 {[%emt 0:00:17]} Nd5 {[%emt 0:00:18]} 22. Bxd5 {[%emt 0:02:09]} exd5 {[%emt 0:00:02]} 23. Qb3 {[%emt 0:00:01]} Rd8 {[%emt 0:01:46]} 24. c6 {[%emt 0:00:08]} bxc6 {[%emt 0:01:26]} 25. Nxc6 {[%emt 0:00:02]} Re8 {[%emt 0:00:01]} 26. Qxd5 {[%emt 0:02:01]} Bb7 {[%emt 0:01:15]} 27. Qd7 {[%emt 0:00:09]} Bxc6 {[%emt 0:00:18]} 28. Qxc6 {[%emt 0:00:02]} Bf6 {[%emt 0:00:40]} 29. b4 {[%emt 0:00:35]} Rac8 {[%emt 0:00:26]} 30. Qa6 {[%emt 0:00:10]} Rc7 {[%emt 0:00:44]} 31. Bxh6 {[%emt 0:01:48]} Re6 {[%emt 0:00:15]} 32. Qa5 {[%emt 0:00:03]} Rd7 {[%emt 0:01:50]} 33. Be3 {[%emt 0:00:09]} Bd4 {[%emt 0:00:12]} 34. Bxd4 {[%emt 0:00:40]} Rxd4 {[%emt 0:00:00]} 35. Qc5 {[%emt 0:00:48]} Rd1+ {[%emt 0:00:26]} 36. Kg2 {[%emt 0:00:03]} a6 {[%emt 0:00:00]} 37. Qc8+ {[%emt 0:00:10]} 1-0

[Event "European Women Rapid-ch 2023"]
[Site "Monaco"]
[Date "2024.01.14"]
[Round "7.27"]
[White "Movsesian, Julia"]
[Black "Nicoara, Malina"]
[Result "1-0"]
[ECO "B70"]
[WhiteElo "2257"]
[BlackElo "2054"]
[Annotator "RC"]
[PlyCount "75"]
[EventDate "2023.12.19"]
[EventType "swiss"]
[EventCountry "MNC"]
[SourceTitle "playchess.com"]
[Source "ChessBase"]
[SourceQuality "1"]
[TimeControl "900+10"]

1. e4 {[%emt 0:00:01]} c5 {[%emt 0:00:02]} 2. Nf3 {[%emt 0:00:02]} Nc6 {[%emt 0:00:02]} 3. Nc3 {[%emt 0:00:01]} g6 {[%emt 0:00:04]} 4. d4 {[%emt 0:00:02]} cxd4 {[%emt 0:00:02]} 5. Nxd4 {[%emt 0:00:01]} Bg7 {[%emt 0:00:05]} 6. Nde2 {[%emt 0:00:01]} d6 {[%emt 0:00:05]} 7. g3 {[%emt 0:00:02]} Nf6 {[%emt 0:00:04]} 8. Bg2 {[%emt 0:00:01]} O-O {[%emt 0:00:02]} 9. O-O {[%emt 0:00:03]} Be6 {[%emt 0:00:59]} 10. h3 {[%emt 0:00:02]} Qc8 {[%emt 0:00:45]} 11. Kh2 {[%emt 0:00:03]} Rd8 {[%emt 0:00:01]} 12. Nd5 {[%emt 0:00:46]} Bxd5 {[%emt 0:01:01]} 13. exd5 {[%emt 0:00:01]} Ne5 {[%emt 0:00:01]} 14. a4 {[%emt 0:00:35]} a5 {[%emt 0:00:27]} 15. Be3 {[%emt 0:00:16]} Ra6 {[%emt 0:02:45]} 16. Bd4 {[%emt 0:00:36]} Nc4 {[%emt 0:00:09]} 17. b3 {[%emt 0:00:05]} Nb6 {[%emt 0:00:01]} 18. c4 {[%emt 0:00:00]} Nbd7 {[%emt 0:00:00]} 19. Nc3 {[%emt 0:00:39]} Nc5 {[%emt 0:00:03]} 20. Nb5 {[%emt 0:00:05]} Qf5 {[%emt 0:02:18]} 21. Ra2 {[%emt 0:01:50]} h5 {[%emt 0:01:27]} 22. Re2 {[%emt 0:00:00]} Bf8 {[%emt 0:00:07]} 23. Kg1 {[%emt 0:00:00]} Nh7 {[%emt 0:01:41]} 24. f4 {[%emt 0:02:44]} Nf6 {[%emt 0:00:53]} 25. Ba1 {[%emt 0:00:54]} Rc8 {[%emt 0:01:43]} 26. Re3 {[%emt 0:00:06]} Qd7 {[%emt 0:00:17]} 27. Rfe1 {[%emt 0:00:11]} Qd8 {[%emt 0:00:34]} 28. Kh2 {[%emt 0:01:03]} Qd7 {[%emt 0:00:01]} 29. Qf3 {[%emt 0:01:03]} Qf5 {[%emt 0:00:04]} 30. Nd4 {[%emt 0:00:12]} Qd7 {[%emt 0:00:02]} 31. f5 {[%emt 0:00:57]} g5 {[%emt 0:00:52]} 32. Nb5 {[%emt 0:00:05]} g4 {[%emt 0:00:47]} 33. Qf4 {[%emt 0:00:06]} gxh3 {[%emt 0:01:46]} 34. Bxh3 {[%emt 0:00:03]} Kh7 {[%emt 0:00:00]} 35. Qh4 {[%emt 0:00:25]} Nce4 {[%emt 0:00:27]} 36. Rxe4 {[%emt 0:00:08]} Nxe4 {[%emt 0:00:01]} 37. Qxh5+ {[%emt 0:00:02]} Bh6 {[%emt 0:00:01]} 38. Qxf7+ {[%emt 0:01:11]} 1-0

[Event "European Women Rapid-ch 2023"]
[Site "Monaco"]
[Date "2024.01.14"]
[Round "8.1"]
[White "Paehtz, Elisabeth"]
[Black "Kosteniuk, Alexandra"]
[Result "1/2-1/2"]
[ECO "A14"]
[WhiteElo "2461"]
[BlackElo "2501"]
[Annotator "RC"]
[PlyCount "54"]
[EventDate "2023.12.19"]
[EventType "swiss"]
[EventCountry "MNC"]
[SourceTitle "playchess.com"]
[Source "ChessBase"]
[SourceQuality "1"]
[TimeControl "900+10"]

1. Nf3 {[%emt 0:00:02]} Nf6 {[%emt 0:00:04]} 2. c4 {[%emt 0:00:03]} b6 {[%emt 0:00:13]} 3. g3 {[%emt 0:00:02]} Bb7 {[%emt 0:00:01]} 4. Bg2 {[%emt 0:00:02]} e6 {[%emt 0:00:01]} 5. O-O {[%emt 0:00:16]} Be7 {[%emt 0:00:02]} 6. b3 {[%emt 0:00:23]} O-O {[%emt 0:00:04]} 7. Bb2 {[%emt 0:00:02]} d5 {[%emt 0:00:08]} 8. e3 {[%emt 0:00:10]} c5 {[%emt 0:00:21]} 9. Nc3 {[%emt 0:00:24]} Nc6 {[%emt 0:00:42]} 10. cxd5 {[%emt 0:00:11]} exd5 {[%emt 0:00:09]} 11. d4 {[%emt 0:00:04]} Re8 {[%emt 0:00:13]} 12. Rc1 {[%emt 0:00:47]} Bf8 {[%emt 0:00:04]} 13. dxc5 {[%emt 0:00:38]} bxc5 {[%emt 0:00:02]} 14. Na4 {[%emt 0:00:01]} Ne4 {[%emt 0:01:19]} 15. a3 {[%emt 0:00:46]} Na5 {[%emt 0:02:13]} 16. Ne5 {[%emt 0:01:30]} Ba6 {[%emt 0:02:03]} 17. Re1 {[%emt 0:00:02]} f6 {[%emt 0:00:30]} 18. Nf3 {[%emt 0:01:57]} Rb8 {[%emt 0:00:14]} 19. Nd2 {[%emt 0:00:09]} Nxd2 {[%emt 0:03:33]} 20. Qxd2 {[%emt 0:00:02]} Nxb3 {[%emt 0:00:07]} 21. Qxd5+ {[%emt 0:00:11]} Kh8 {[%emt 0:00:01]} 22. Rcd1 {[%emt 0:03:18]} Qxd5 {[%emt 0:00:03]} 23. Bxd5 {[%emt 0:00:09]} c4 {[%emt 0:00:14]} 24. e4 {[%emt 0:01:36]} Bb5 {[%emt 0:01:26]} 25. Nc3 {[%emt 0:00:02]} Ba6 {[%emt 0:00:08]} 26. Na4 {[%emt 0:00:01]} Bb5 {[%emt 0:00:59]} 27. Nc3 {[%emt 0:00:01]} Ba6 {[%emt 0:00:01]} 1/2-1/2